{"text_format":"1","workbook":"xlsx","n_sheets":39,"sheets":["Base de donnees fixe","Base de donnees","Présentation","PickRD","Krosmasters","Cartes des Krosmasters Saison 1","Cartes des Krosmasters Saison 2","Cartes des Krosmasters Saison 3","Cartes des Krosmasters Saison 4","Cartes des Krosmasters Saison 5","Cartes des Krosmasters Eternal","Caractéristiques Invocations","Format Eternal","RD","Fosse","Fosse inversée","Arène Elémentaire","Arène Elémentaire inversée","Ankama Convention","Ankama Convention inversée","CDF 2014","CDF 2014 inversée","Plantation","Plantation inversée","CDF 2015","CDF 2015 inversée","CDM 2016","CDF 2016","CDF 2016 inversée","CDM 2017","CDM 2017 inversée","Bonta 1","Bonta 1 inversée","Bonta 2","Bonta 2 inversée","Piwate 1","Piwate 1 inversée","Piwate 2","Piwate 2 inversée"],"not_rendered":{"charts":0,"images":594,"macros":1,"external_links":0,"defined_names":0,"comments":0,"pivot_tables":0},"unopened":[],"bounds":{"document_bytes":16777216,"sheet_cells":100000,"rows_first":2000,"rows_last":500,"rows_between":2000,"halvings":0,"cell_chars":16384,"cell_head_chars":4096},"cells_cut":0,"cells_raw":0,"read":"whole","date_system":"1900"}

{"sheet":"Base de donnees fixe","index":0,"n_rows":33,"n_cols":6,"rows_kept":33,"cut":false,"hidden":true,"merged":[]}
[]
[null,"RD 3",null,"RD 6",null,"RD 9"]
[]
[null,"Pahoa Raide",null,"Steam Buff",null,"Pano Elite"]
[null,"Poing du Bouftou",null,"Fog Buff",null,"Pano 1001 Griffes"]
[null,"Moulti Baff 1",null,"Aero Punch",null,"Drago de Somme"]
[null,"Poing Dragoune",null,"Dust Buff",null,"Pano Huppermage"]
[null,"Aero Int'",null,"Sceptre Bontarien",null,"Pano Conseiller"]
[null,"Moulti Baff 2",null,"Terra Crunch",null,"Roubla-Sac"]
[null,"Gelure",null,"Esquive Parfaite",null,"Arc Honte"]
[null,"Pichon Volant",null,"E.P.O.Tion",null,"Dofus Ivoire"]
[null,"Terra Chance",null,"Pelle Rail'Zeur",null,"Dofus Ebène"]
[null,"Coup de Foudre",null,"Raide Boule",null,"1001 Grif'Chaku"]
[null,"Blocage Parfait",null,"Moulti Baff XL"]
[null,"Aqua Agi",null,"Magma Buff"]
[null,"Poing du Corbac",null,"Punch l'Aïne"]
[null,"Aqua Force",null,"Pano Garde"]
[null,"Maladresse",null,"Retour du Jus d'Ail"]
[null,"Poing Moskito",null,"Aqua Punch"]
[null,"Chacha d'Egoût",null,"Pyro Punch"]
[null,"Potion Bulbique",null,"Fécadéiné"]
[null,"Peluche Animée",null,"Pupuce Rose"]
[null,"Poing du Snouffle",null,"Mètre du Jus d'Ail"]
[null,"Poing du Wapin"]
[null,"Moulti Baff 3"]
[null,"Pyro Force"]
[null,"Bébé Kérubim"]
[null,"Pyro Agi"]
[null,"Aero Chance"]
[null,"Terra Int"]
[null,"Poing du Gligli"]
[null,"Moulti Baff 4"]
[null,"Poing du Prespic"]

{"sheet":"Base de donnees","index":1,"n_rows":33,"n_cols":6,"rows_kept":33,"cut":false,"hidden":true,"merged":[]}
[]
[null,"RD 3",null,"RD 6",null,"RD 9"]
[]
[null,"Pahoa Raide",null,"Steam Buff",null,"Pano Elite"]
[null,"Poing du Bouftou",null,"Fog Buff",null,"Pano 1001 Griffes"]
[null,"Moulti Baff 1",null,"Aero Punch",null,"Drago de Somme"]
[null,"Poing Dragoune",null,"Dust Buff",null,"Pano Huppermage"]
[null,"Aero Int'",null,"Sceptre Bontarien",null,"Pano Conseiller"]
[null,"Moulti Baff 2",null,"Terra Crunch",null,"Roubla-Sac"]
[null,"Gelure",null,"Esquive Parfaite",null,"Arc Honte"]
[null,"Pichon Volant",null,"E.P.O.Tion",null,"Dofus Ivoire"]
[null,"Terra Chance",null,"Pelle Rail'Zeur",null,"Dofus Ebène"]
[null,"Coup de Foudre",null,"Raide Boule",null,"1001 Grif'Chaku"]
[null,"Blocage Parfait",null,"Moulti Baff XL"]
[null,"Aqua Agi",null,"Magma Buff"]
[null,"Poing du Corbac",null,"Punch l'Aïne"]
[null,"Aqua Force",null,"Pano Garde"]
[null,"Maladresse",null,"Retour du Jus d'Ail"]
[null,"Poing Moskito",null,"Aqua Punch"]
[null,"Chacha d'Egoût",null,"Pyro Punch"]
[null,"Potion Bulbique",null,"Fécadéiné"]
[null,"Peluche Animée",null,"Pupuce Rose"]
[null,"Poing du Snouffle",null,"Mètre du Jus d'Ail"]
[null,"Poing du Wapin"]
[null,"Moulti Baff 3"]
[null,"Pyro Force"]
[null,"Bébé Kérubim"]
[null,"Pyro Agi"]
[null,"Aero Chance"]
[null,"Terra Int"]
[null,"Poing du Gligli"]
[null,"Moulti Baff 4"]
[null,"Poing du Prespic"]

{"sheet":"Présentation","index":2,"n_rows":26,"n_cols":2,"rows_kept":26,"cut":false,"hidden":false,"merged":[[25,1,25,7],[23,1,24,9],[2,1,8,13],[9,1,12,13],[14,1,17,9],[18,1,20,6]]}
[]
[]
[null,"Outil d'entraînement Krosmaster"]
[]
[]
[]
[]
[]
[]
[null,"Version partagée"]
[]
[]
[]
[]
[null,"Créé par Arnaud MANTEAU (Letueursublime)"]
[]
[]
[]
[null,"Assisté par Colin VANDEN EEDE"]
[]
[]
[]
[]
[null,"Les diverses images utilisées sont la propriété d'Ankama Games. Tous droits réservés."]
[]
[null,"L'activation des macros est indispensable au bon fonctionnement du logiciel."]

{"sheet":"PickRD","index":3,"n_rows":26,"n_cols":5,"rows_kept":26,"cut":false,"hidden":true,"merged":[]}
[]
[null,null,null,"RD 9 sorties",0]
[]
[null,null,null,"RD 6 sorties",0]
[]
[]
[]
[null,null,null,"RD 3 sorties",0]
[]
[]
[]
[]
[]
[null,"Résultat :"]
[]
[]
[]
[]
[null,"Résultats :"]
[]
[]
[]
[]
[]
[]
[null,"Résultats :"]

{"sheet":"Krosmasters","index":4,"n_rows":50,"n_cols":14,"rows_kept":50,"cut":false,"hidden":true,"merged":[[49,1,50,5],[34,13,35,16],[1,1,2,5],[1,7,2,11],[32,1,33,5],[32,7,33,11],[29,13,30,16],[1,13,2,16]]}
[]
[null,"Saison 1",null,null,null,null,null,"Saison 2",null,null,null,null,null,"Invocations"]
[]
[]
[]
[]
[]
[]
[]
[]
[]
[]
[]
[]
[]
[]
[]
[]
[]
[]
[]
[]
[]
[]
[]
[]
[]
[]
[]
[null,null,null,null,null,null,null,null,null,null,null,null,null,"Marqueurs"]
[]
[]
[null,"Saison 3",null,null,null,null,null,"Saison 4"]
[]
[null,null,null,null,null,null,null,null,null,null,null,null,null,"Pastilles (pour les doublons)"]
[]
[]
[]
[]
[]
[]
[]
[]
[]
[]
[]
[]
[]
[]
[null,"Saison 5"]

{"sheet":"Cartes des Krosmasters Saison 1","index":5,"n_rows":0,"n_cols":0,"rows_kept":0,"cut":false,"hidden":true,"merged":[]}

{"sheet":"Cartes des Krosmasters Saison 2","index":6,"n_rows":0,"n_cols":0,"rows_kept":0,"cut":false,"hidden":true,"merged":[]}

{"sheet":"Cartes des Krosmasters Saison 3","index":7,"n_rows":0,"n_cols":0,"rows_kept":0,"cut":false,"hidden":true,"merged":[]}

{"sheet":"Cartes des Krosmasters Saison 4","index":8,"n_rows":0,"n_cols":0,"rows_kept":0,"cut":false,"hidden":true,"merged":[]}

{"sheet":"Cartes des Krosmasters Saison 5","index":9,"n_rows":0,"n_cols":0,"rows_kept":0,"cut":false,"hidden":true,"merged":[]}

{"sheet":"Cartes des Krosmasters Eternal","index":10,"n_rows":0,"n_cols":0,"rows_kept":0,"cut":false,"hidden":true,"merged":[]}

{"sheet":"Caractéristiques Invocations","index":11,"n_rows":0,"n_cols":0,"rows_kept":0,"cut":false,"hidden":true,"merged":[]}

{"sheet":"Format Eternal","index":12,"n_rows":89,"n_cols":11,"rows_kept":89,"cut":false,"hidden":true,"merged":[[1,2,1,5],[1,6,1,9],[1,10,1,13],[2,2,3,5],[2,6,3,9],[2,10,3,13],[6,2,6,5],[6,6,6,9],[6,10,6,13],[7,2,7,5],[7,6,7,9],[7,10,7,13],[4,2,4,5],[4,6,4,9],[4,10,4,13],[5,2,5,5],[5,6,5,9],[5,10,5,13],[11,2,11,5],[11,6,11,9],[11,10,11,13],[12,2,13,5],[12,6,12,9],[12,10,13,13],[13,6,13,9],[8,2,8,5],[8,6,8,9],[8,10,8,13],[9,2,9,5],[9,6,10,9],[9,10,9,13],[10,2,10,5],[10,10,10,13],[16,2,16,5],[16,6,16,9],[16,10,16,13],[17,2,17,5],[17,6,17,9],[17,10,17,13],[14,2,14,5],[14,6,14,9],[14,10,14,13],[15,2,15,5],[15,6,15,9],[15,10,15,13],[20,2,20,5],[20,6,20,9],[20,10,21,13],[21,2,21,5],[21,6,21,9],[22,2,22,5],[22,6,22,9],[22,10,22,13],[18,2,18,5],[18,6,18,9],[18,10,18,13],[19,2,19,5],[19,6,19,9],[19,10,19,13],[26,2,26,5],[26,6,26,9],[26,10,26,13],[27,2,27,5],[27,6,27,9],[27,10,27,13],[23,2,23,5],[23,6,23,9],[23,10,23,13],[24,2,24,5],[24,6,25,9],[24,10,25,13],[25,2,25,5],[30,2,30,5],[30,6,30,9],[30,10,30,13],[31,2,31,5],[31,6,31,9],[31,10,31,13],[28,2,28,5],[28,6,28,9],[28,10,28,13],[29,2,29,5],[29,6,29,9],[29,10,29,13],[35,2,35,5],[35,6,35,9],[35,10,36,13],[36,2,36,5],[36,6,36,9],[37,2,37,5],[37,6,37,9],[37,10,37,13],[32,2,33,5],[32,6,32,9],[32,10,32,13],[33,6,33,9],[33,10,33,13],[34,2,34,5],[34,6,34,9],[34,10,34,13],[40,2,40,5],[40,6,40,9],[40,10,40,13],[41,2,41,5],[41,6,41,9],[41,10,42,13],[42,2,42,5],[42,6,42,9],[38,2,38,5],[38,6,38,9],[38,10,38,13],[39,2,39,5],[39,6,39,9],[39,10,39,13],[45,2,45,5],[45,6,45,9],[45,10,45,13],[46,2,46,5],[46,6,46,9],[46,10,46,13],[43,2,43,5],[43,6,43,9],[43,10,43,13],[44,2,44,5],[44,6,44,9],[44,10,44,13],[50,2,50,5],[50,6,50,9],[51,2,51,5],[51,6,51,9],[52,2,52,5],[52,6,52,9],[47,2,47,5],[47,6,47,9],[47,10,47,13],[48,2,48,5],[48,6,48,9],[49,2,49,5],[49,6,49,9],[57,2,57,5],[57,6,57,9],[58,2,58,5],[58,6,58,9],[59,2,59,5],[59,6,59,9],[53,2,54,5],[53,6,54,9],[55,2,55,5],[55,6,55,9],[56,2,56,5],[56,6,56,9],[64,2,64,5],[64,6,64,9],[65,2,65,5],[65,6,65,9],[66,2,66,5],[66,6,66,9],[60,2,60,5],[60,6,60,9],[61,2,62,5],[61,6,61,9],[62,6,62,9],[63,2,63,5],[63,6,63,9],[71,6,71,9],[72,6,73,9],[74,6,74,9],[75,6,75,9],[76,6,76,9],[77,6,77,9],[67,2,67,5],[67,6,67,9],[68,2,68,5],[68,6,68,9],[69,6,69,9],[70,6,70,9],[85,6,85,9],[86,6,86,9],[87,6,87,9],[88,6,88,9],[78,6,78,9],[79,6,80,9],[81,6,81,9],[82,6,82,9],[83,6,83,9],[84,6,84,9]]}
[]
[null,null,"★",null,null,null,"★★",null,null,null,"★★★"]
[null,null,"Niveaux 1",null,null,null,"Niveaux 1",null,null,null,"Niveaux 1"]
[]
[null,null,"Kanniboul Sarbak",null,null,null,"Phaéris - Anéanti",null,null,null,"Coa Gulay"]
[null,null,"Ogrest - Enfant",null,null,null,"Chafer Fantassin",null,null,null,"Poochan"]
[null,null,"Vampire Chétif",null,null,null,"Chafer Lancier",null,null,null,"Djaul"]
[null,null,"Wally Failleur",null,null,null,"Liane Zolie",null,null,null,"Edmond Dentier"]
[null,null,"Boomba",null,null,null,"Maskemane (toustes les formes)",null,null,null,"Jerry Orlo"]
[null,null,"Daïe Guéri",null,null,null,"Niveaux 2",null,null,null,"Quentin Flush"]
[null,null,"Grougaloragran - Âgé",null,null,null,null,null,null,null,"Kivin"]
[null,null,"Kanniboul Archer",null,null,null,"Dark Vlad",null,null,null,"Steamy Wonder"]
[null,null,"Niveaux 2",null,null,null,"Persée Phore",null,null,null,"Niveaux 2"]
[null,null,null,null,null,null,"Darkli Moon"]
[null,null,"Srammy",null,null,null,"Lumino",null,null,null,"Cléophée"]
[null,null,"Joris",null,null,null,"Ayan",null,null,null,"Henual"]
[null,null,"Kanniboul Jav",null,null,null,"Dragoeth le Penseur",null,null,null,"Khan Karkass"]
[null,null,"Gegard Laport",null,null,null,"Atcham",null,null,null,"Luk Ylook"]
[null,null,"Marline",null,null,null,"Joris - Bretteur",null,null,null,"Raymond Garden"]
[null,null,"Masse",null,null,null,"Korbax",null,null,null,"Klor Ofil"]
[null,null,"Scoreur",null,null,null,"Skale",null,null,null,"Niveaux 3"]
[null,null,"Zoubo l'Amiche",null,null,null,"Chafer Archer"]
[null,null,"Naz Raël",null,null,null,"Lou",null,null,null,"Grimm Beurguen"]
[null,null,"Riktus Amakna",null,null,null,"Nakunbra",null,null,null,"Arthur Bine"]
[null,null,"Riktus Bonta",null,null,null,"Niveaux 3",null,null,null,"Niveaux 4"]
[null,null,"Riktus Brâkmar"]
[null,null,"Riktus Sufokia",null,null,null,"Anna Tommy",null,null,null,"Julith"]
[null,null,"Tony N. Truhan",null,null,null,"Kanniboul Ebil",null,null,null,"Thio"]
[null,null,"Kanniboul Thierry",null,null,null,"Reine des Tofus",null,null,null,"Hercul Eudla"]
[null,null,"Lilotte",null,null,null,"Adamaï",null,null,null,"Bakara"]
[null,null,"Ombre",null,null,null,"Dark Vlad - Enkarné",null,null,null,"Yugo - Exalté"]
[null,null,"Sam Hyrrit",null,null,null,"Guy Yomtella",null,null,null,"Sphincter Cell"]
[null,null,"Niveaux 3",null,null,null,"Kriss la Krass",null,null,null,"Ush"]
[null,null,null,null,null,null,"Maître Corbac",null,null,null,"Corbeau Noir"]
[null,null,"Joris - Maître",null,null,null,"Maître Vampire",null,null,null,"Emma Sacre"]
[null,null,"Evangelyne",null,null,null,"Yugo",null,null,null,"Niveaux 5"]
[null,null,"Raoul Bak",null,null,null,"Chevalier Nuage"]
[null,null,"Déminoboule",null,null,null,"Diver Birel",null,null,null,"La Nonne"]
[null,null,"Terminatot Gaulde",null,null,null,"Kam Erlite",null,null,null,"Duc Rex"]
[null,null,"Terminatot Stasis",null,null,null,"Pandalida",null,null,null,"Kitty Rage"]
[null,null,"Terminatot Wakfu",null,null,null,"Bad Aboum",null,null,null,"Mali Bouh"]
[null,null,"Tofu Royal",null,null,null,"Chevalier Flamme",null,null,null,"Niveaux 6"]
[null,null,"Arty",null,null,null,"Kréol Panikon"]
[null,null,"Ruel Stroud",null,null,null,"Mytik Tak",null,null,null,"Gein"]
[null,null,"Drageaufol la Joyeuse",null,null,null,"Papycha - Marchand",null,null,null,"Nox"]
[null,null,"Opée Tissoin",null,null,null,"Chafer Invisible",null,null,null,"Katar"]
[null,null,"Oscar Nak",null,null,null,"Gaspard Fay",null,null,null,"Goultard"]
[null,null,"Amalia",null,null,null,"Chloé Mallette",null,null,null,"Merkator"]
[null,null,"Tristepin",null,null,null,"Jayma Gourd"]
[null,null,"Chevalier Feuille",null,null,null,"Erik Rak"]
[null,null,"Chevalier Goutte",null,null,null,"Percimol - Contrôlé"]
[null,null,"Katsou Mee",null,null,null,"Roi des Bouftous"]
[null,null,"Filo Komba",null,null,null,"Bouftou Royal"]
[null,null,"Niveaux 4",null,null,null,"Niveaux 4"]
[]
[null,null,"Jems Blond",null,null,null,"Ben le Ripate"]
[null,null,"Roissingue",null,null,null,"Kérubim Crépin"]
[null,null,"Minotoror",null,null,null,"Reine des Voleurs"]
[null,null,"Roi Nidas",null,null,null,"Yugo - Jeune Roi"]
[null,null,"Globule la Crapule",null,null,null,"Remington Smisse - Mercenaire"]
[null,null,"Papycha",null,null,null,"Makum Bah"]
[null,null,"Niveaux 5",null,null,null,"Papycha - Protecteur"]
[null,null,null,null,null,null,"Riktus Elite"]
[null,null,"Tristepin - Tristecoeur",null,null,null,"Dany Osheun"]
[null,null,"Crocabulia",null,null,null,"Dragueuse"]
[null,null,"Yugo - Déchaîné",null,null,null,"Gros Nambourg"]
[null,null,"Harry Saf",null,null,null,"Morora"]
[null,null,"Le Chouque",null,null,null,"Sarah Croche"]
[null,null,"Moon",null,null,null,"Alie Zèle"]
[null,null,null,null,null,null,"Chafer d'Elite"]
[null,null,null,null,null,null,"Elogio"]
[null,null,null,null,null,null,"Jahash"]
[null,null,null,null,null,null,"Niveaux 5"]
[]
[null,null,null,null,null,null,"Dokfa Talys"]
[null,null,null,null,null,null,"Vampyro"]
[null,null,null,null,null,null,"Remington Smisse"]
[null,null,null,null,null,null,"Percimol"]
[null,null,null,null,null,null,"Shak Shaka"]
[null,null,null,null,null,null,"Niveaux 6"]
[]
[null,null,null,null,null,null,"Captain Amakna"]
[null,null,null,null,null,null,"Chevalier Ténèbres"]
[null,null,null,null,null,null,"Comte Harebourg"]
[null,null,null,null,null,null,"Comte Frigost"]
[null,null,null,null,null,null,"Qilby"]
[null,null,null,null,null,null,"Qilby - Traître"]
[null,null,null,null,null,null,"Goultard le Barbare"]
[null,null,null,null,null,null,"Otomaï"]

{"sheet":"RD","index":13,"n_rows":14,"n_cols":5,"rows_kept":14,"cut":false,"hidden":true,"merged":[[1,0,2,3],[1,4,2,7],[13,4,14,7]]}
[]
["RD 3",null,null,null,"RD 6"]
[]
[]
[]
[]
[]
[]
[]
[]
[]
[]
[]
[null,null,null,null,"RD 9"]

{"sheet":"Fosse","index":14,"n_rows":13,"n_cols":18,"rows_kept":13,"cut":false,"hidden":true,"merged":[[2,17,4,21],[6,17,8,21],[11,17,13,21],[1,17,1,21],[10,17,10,21]]}
[]
[null,null,null,null,null,null,null,null,null,null,null,null,null,null,null,null,null,"Kamas Joueur 1"]
[{"$f":"PickRD!$B$2","v":0}]
[]
[{"$f":"PickRD!$B$4","v":0}]
[]
[{"$f":"PickRD!$B$5","v":0}]
[]
[{"$f":"PickRD!$B$7","v":0}]
[]
[{"$f":"PickRD!$B$8","v":0},null,null,null,null,null,null,null,null,null,null,null,null,null,null,null,null,"Kamas Joueur 2"]
[]
[{"$f":"PickRD!$B$9","v":0}]

{"sheet":"Fosse inversée","index":15,"n_rows":12,"n_cols":18,"rows_kept":12,"cut":false,"hidden":true,"merged":[[0,17,0,21],[1,17,3,21],[5,17,7,21],[9,17,9,21],[10,17,12,21]]}
[null,null,null,null,null,null,null,null,null,null,null,null,null,null,null,null,null,"Kamas Joueur 1"]
[{"$f":"PickRD!$B$2","v":0}]
[]
[{"$f":"PickRD!$B$4","v":0}]
[]
[{"$f":"PickRD!$B$5","v":0}]
[]
[{"$f":"PickRD!$B$7","v":0}]
[]
[{"$f":"PickRD!$B$8","v":0},null,null,null,null,null,null,null,null,null,null,null,null,null,null,null,null,"Kamas Joueur 2"]
[]
[{"$f":"PickRD!$B$9","v":0}]

{"sheet":"Arène Elémentaire","index":16,"n_rows":12,"n_cols":18,"rows_kept":12,"cut":false,"hidden":true,"merged":[[0,17,0,21],[1,17,3,21],[5,17,7,21],[9,17,9,21],[10,17,12,21]]}
[null,null,null,null,null,null,null,null,null,null,null,null,null,null,null,null,null,"Kamas Joueur 1"]
[{"$f":"PickRD!$B$2","v":0}]
[]
[{"$f":"PickRD!$B$4","v":0}]
[]
[{"$f":"PickRD!$B$5","v":0}]
[]
[{"$f":"PickRD!$B$7","v":0}]
[]
[{"$f":"PickRD!$B$8","v":0},null,null,null,null,null,null,null,null,null,null,null,null,null,null,null,null,"Kamas Joueur 2"]
[]
[{"$f":"PickRD!$B$9","v":0}]

{"sheet":"Arène Elémentaire inversée","index":17,"n_rows":12,"n_cols":18,"rows_kept":12,"cut":false,"hidden":true,"merged":[[0,17,0,21],[1,17,3,21],[5,17,7,21],[9,17,9,21],[10,17,12,21]]}
[null,null,null,null,null,null,null,null,null,null,null,null,null,null,null,null,null,"Kamas Joueur 1"]
[{"$f":"PickRD!$B$2","v":0}]
[]
[{"$f":"PickRD!$B$4","v":0}]
[]
[{"$f":"PickRD!$B$5","v":0}]
[]
[{"$f":"PickRD!$B$7","v":0}]
[]
[{"$f":"PickRD!$B$8","v":0},null,null,null,null,null,null,null,null,null,null,null,null,null,null,null,null,"Kamas Joueur 2"]
[]
[{"$f":"PickRD!$B$9","v":0}]

{"sheet":"Ankama Convention","index":18,"n_rows":12,"n_cols":18,"rows_kept":12,"cut":false,"hidden":true,"merged":[[0,17,0,21],[1,17,3,21],[5,17,7,21],[9,17,9,21],[10,17,12,21]]}
[null,null,null,null,null,null,null,null,null,null,null,null,null,null,null,null,null,"Kamas Joueur 1"]
[{"$f":"PickRD!$B$2","v":0}]
[]
[{"$f":"PickRD!$B$4","v":0}]
[]
[{"$f":"PickRD!$B$5","v":0}]
[]
[{"$f":"PickRD!$B$7","v":0}]
[]
[{"$f":"PickRD!$B$8","v":0},null,null,null,null,null,null,null,null,null,null,null,null,null,null,null,null,"Kamas Joueur 2"]
[]
[{"$f":"PickRD!$B$9","v":0}]

{"sheet":"Ankama Convention inversée","index":19,"n_rows":12,"n_cols":18,"rows_kept":12,"cut":false,"hidden":true,"merged":[[0,17,0,21],[1,17,3,21],[5,17,7,21],[9,17,9,21],[10,17,12,21]]}
[null,null,null,null,null,null,null,null,null,null,null,null,null,null,null,null,null,"Kamas Joueur 1"]
[{"$f":"PickRD!$B$2","v":0}]
[]
[{"$f":"PickRD!$B$4","v":0}]
[]
[{"$f":"PickRD!$B$5","v":0}]
[]
[{"$f":"PickRD!$B$7","v":0}]
[]
[{"$f":"PickRD!$B$8","v":0},null,null,null,null,null,null,null,null,null,null,null,null,null,null,null,null,"Kamas Joueur 2"]
[]
[{"$f":"PickRD!$B$9","v":0}]

{"sheet":"CDF 2014","index":20,"n_rows":12,"n_cols":18,"rows_kept":12,"cut":false,"hidden":true,"merged":[[0,17,0,21],[1,17,3,21],[5,17,7,21],[9,17,9,21],[10,17,12,21]]}
[null,null,null,null,null,null,null,null,null,null,null,null,null,null,null,null,null,"Kamas Joueur 1"]
[{"$f":"PickRD!$B$2","v":0}]
[]
[{"$f":"PickRD!$B$4","v":0}]
[]
[{"$f":"PickRD!$B$5","v":0}]
[]
[{"$f":"PickRD!$B$7","v":0}]
[]
[{"$f":"PickRD!$B$8","v":0},null,null,null,null,null,null,null,null,null,null,null,null,null,null,null,null,"Kamas Joueur 2"]
[]
[{"$f":"PickRD!$B$9","v":0}]

{"sheet":"CDF 2014 inversée","index":21,"n_rows":12,"n_cols":18,"rows_kept":12,"cut":false,"hidden":true,"merged":[[0,17,0,21],[1,17,3,21],[5,17,7,21],[9,17,9,21],[10,17,12,21]]}
[null,null,null,null,null,null,null,null,null,null,null,null,null,null,null,null,null,"Kamas Joueur 1"]
[{"$f":"PickRD!$B$2","v":0}]
[]
[{"$f":"PickRD!$B$4","v":0}]
[]
[{"$f":"PickRD!$B$5","v":0}]
[]
[{"$f":"PickRD!$B$7","v":0}]
[]
[{"$f":"PickRD!$B$8","v":0},null,null,null,null,null,null,null,null,null,null,null,null,null,null,null,null,"Kamas Joueur 2"]
[]
[{"$f":"PickRD!$B$9","v":0}]

{"sheet":"Plantation","index":22,"n_rows":12,"n_cols":18,"rows_kept":12,"cut":false,"hidden":true,"merged":[[0,17,0,21],[1,17,3,21],[5,17,7,21],[9,17,9,21],[10,17,12,21]]}
[null,null,null,null,null,null,null,null,null,null,null,null,null,null,null,null,null,"Kamas Joueur 1"]
[{"$f":"PickRD!$B$2","v":0}]
[]
[{"$f":"PickRD!$B$4","v":0}]
[]
[{"$f":"PickRD!$B$5","v":0}]
[]
[{"$f":"PickRD!$B$7","v":0}]
[]
[{"$f":"PickRD!$B$8","v":0},null,null,null,null,null,null,null,null,null,null,null,null,null,null,null,null,"Kamas Joueur 2"]
[]
[{"$f":"PickRD!$B$9","v":0}]

{"sheet":"Plantation inversée","index":23,"n_rows":12,"n_cols":18,"rows_kept":12,"cut":false,"hidden":true,"merged":[[0,17,0,21],[1,17,3,21],[5,17,7,21],[9,17,9,21],[10,17,12,21]]}
[null,null,null,null,null,null,null,null,null,null,null,null,null,null,null,null,null,"Kamas Joueur 1"]
[{"$f":"PickRD!$B$2","v":0}]
[]
[{"$f":"PickRD!$B$4","v":0}]
[]
[{"$f":"PickRD!$B$5","v":0}]
[]
[{"$f":"PickRD!$B$7","v":0}]
[]
[{"$f":"PickRD!$B$8","v":0},null,null,null,null,null,null,null,null,null,null,null,null,null,null,null,null,"Kamas Joueur 2"]
[]
[{"$f":"PickRD!$B$9","v":0}]

{"sheet":"CDF 2015","index":24,"n_rows":12,"n_cols":18,"rows_kept":12,"cut":false,"hidden":true,"merged":[[0,17,0,21],[1,17,3,21],[5,17,7,21],[9,17,9,21],[10,17,12,21]]}
[null,null,null,null,null,null,null,null,null,null,null,null,null,null,null,null,null,"Kamas Joueur 1"]
[{"$f":"PickRD!$B$2","v":0}]
[]
[{"$f":"PickRD!$B$4","v":0}]
[]
[{"$f":"PickRD!$B$5","v":0}]
[]
[{"$f":"PickRD!$B$7","v":0}]
[]
[{"$f":"PickRD!$B$8","v":0},null,null,null,null,null,null,null,null,null,null,null,null,null,null,null,null,"Kamas Joueur 2"]
[]
[{"$f":"PickRD!$B$9","v":0}]

{"sheet":"CDF 2015 inversée","index":25,"n_rows":12,"n_cols":18,"rows_kept":12,"cut":false,"hidden":true,"merged":[[0,17,0,21],[1,17,3,21],[5,17,7,21],[9,17,9,21],[10,17,12,21]]}
[null,null,null,null,null,null,null,null,null,null,null,null,null,null,null,null,null,"Kamas Joueur 1"]
[{"$f":"PickRD!$B$2","v":0}]
[]
[{"$f":"PickRD!$B$4","v":0}]
[]
[{"$f":"PickRD!$B$5","v":0}]
[]
[{"$f":"PickRD!$B$7","v":0}]
[]
[{"$f":"PickRD!$B$8","v":0},null,null,null,null,null,null,null,null,null,null,null,null,null,null,null,null,"Kamas Joueur 2"]
[]
[{"$f":"PickRD!$B$9","v":0}]

{"sheet":"CDM 2016","index":26,"n_rows":12,"n_cols":18,"rows_kept":12,"cut":false,"hidden":true,"merged":[[0,17,0,21],[1,17,3,21],[5,17,7,21],[9,17,9,21],[10,17,12,21]]}
[null,null,null,null,null,null,null,null,null,null,null,null,null,null,null,null,null,"Kamas Joueur 1"]
[{"$f":"PickRD!$B$2","v":0}]
[]
[{"$f":"PickRD!$B$4","v":0}]
[]
[{"$f":"PickRD!$B$5","v":0}]
[]
[{"$f":"PickRD!$B$7","v":0}]
[]
[{"$f":"PickRD!$B$8","v":0},null,null,null,null,null,null,null,null,null,null,null,null,null,null,null,null,"Kamas Joueur 2"]
[]
[{"$f":"PickRD!$B$9","v":0}]

{"sheet":"CDF 2016","index":27,"n_rows":12,"n_cols":18,"rows_kept":12,"cut":false,"hidden":true,"merged":[[0,17,0,21],[1,17,3,21],[5,17,7,21],[9,17,9,21],[10,17,12,21]]}
[null,null,null,null,null,null,null,null,null,null,null,null,null,null,null,null,null,"Kamas Joueur 1"]
[{"$f":"PickRD!$B$2","v":0}]
[]
[{"$f":"PickRD!$B$4","v":0}]
[]
[{"$f":"PickRD!$B$5","v":0}]
[]
[{"$f":"PickRD!$B$7","v":0}]
[]
[{"$f":"PickRD!$B$8","v":0},null,null,null,null,null,null,null,null,null,null,null,null,null,null,null,null,"Kamas Joueur 2"]
[]
[{"$f":"PickRD!$B$9","v":0}]

{"sheet":"CDF 2016 inversée","index":28,"n_rows":12,"n_cols":18,"rows_kept":12,"cut":false,"hidden":true,"merged":[[0,17,0,21],[1,17,3,21],[5,17,7,21],[9,17,9,21],[10,17,12,21]]}
[null,null,null,null,null,null,null,null,null,null,null,null,null,null,null,null,null,"Kamas Joueur 1"]
[{"$f":"PickRD!$B$2","v":0}]
[]
[{"$f":"PickRD!$B$4","v":0}]
[]
[{"$f":"PickRD!$B$5","v":0}]
[]
[{"$f":"PickRD!$B$7","v":0}]
[]
[{"$f":"PickRD!$B$8","v":0},null,null,null,null,null,null,null,null,null,null,null,null,null,null,null,null,"Kamas Joueur 2"]
[]
[{"$f":"PickRD!$B$9","v":0}]

{"sheet":"CDM 2017","index":29,"n_rows":12,"n_cols":18,"rows_kept":12,"cut":false,"hidden":true,"merged":[[0,17,0,21],[1,17,3,21],[5,17,7,21],[9,17,9,21],[10,17,12,21]]}
[null,null,null,null,null,null,null,null,null,null,null,null,null,null,null,null,null,"Kamas Joueur 1"]
[{"$f":"PickRD!$B$2","v":0}]
[]
[{"$f":"PickRD!$B$4","v":0}]
[]
[{"$f":"PickRD!$B$5","v":0}]
[]
[{"$f":"PickRD!$B$7","v":0}]
[]
[{"$f":"PickRD!$B$8","v":0},null,null,null,null,null,null,null,null,null,null,null,null,null,null,null,null,"Kamas Joueur 2"]
[]
[{"$f":"PickRD!$B$9","v":0}]

{"sheet":"CDM 2017 inversée","index":30,"n_rows":12,"n_cols":18,"rows_kept":12,"cut":false,"hidden":true,"merged":[[0,17,0,21],[1,17,3,21],[5,17,7,21],[9,17,9,21],[10,17,12,21]]}
[null,null,null,null,null,null,null,null,null,null,null,null,null,null,null,null,null,"Kamas Joueur 1"]
[{"$f":"PickRD!$B$2","v":0}]
[]
[{"$f":"PickRD!$B$4","v":0}]
[]
[{"$f":"PickRD!$B$5","v":0}]
[]
[{"$f":"PickRD!$B$7","v":0}]
[]
[{"$f":"PickRD!$B$8","v":0},null,null,null,null,null,null,null,null,null,null,null,null,null,null,null,null,"Kamas Joueur 2"]
[]
[{"$f":"PickRD!$B$9","v":0}]

{"sheet":"Bonta 1","index":31,"n_rows":12,"n_cols":18,"rows_kept":12,"cut":false,"hidden":true,"merged":[[0,17,0,21],[1,17,3,21],[5,17,7,21],[9,17,9,21],[10,17,12,21]]}
[null,null,null,null,null,null,null,null,null,null,null,null,null,null,null,null,null,"Kamas Joueur 1"]
[{"$f":"PickRD!$B$2","v":0}]
[]
[{"$f":"PickRD!$B$4","v":0}]
[]
[{"$f":"PickRD!$B$5","v":0}]
[]
[{"$f":"PickRD!$B$7","v":0}]
[]
[{"$f":"PickRD!$B$8","v":0},null,null,null,null,null,null,null,null,null,null,null,null,null,null,null,null,"Kamas Joueur 2"]
[]
[{"$f":"PickRD!$B$9","v":0}]

{"sheet":"Bonta 1 inversée","index":32,"n_rows":12,"n_cols":18,"rows_kept":12,"cut":false,"hidden":true,"merged":[[0,17,0,21],[1,17,3,21],[5,17,7,21],[9,17,9,21],[10,17,12,21]]}
[null,null,null,null,null,null,null,null,null,null,null,null,null,null,null,null,null,"Kamas Joueur 1"]
[{"$f":"PickRD!$B$2","v":0}]
[]
[{"$f":"PickRD!$B$4","v":0}]
[]
[{"$f":"PickRD!$B$5","v":0}]
[]
[{"$f":"PickRD!$B$7","v":0}]
[]
[{"$f":"PickRD!$B$8","v":0},null,null,null,null,null,null,null,null,null,null,null,null,null,null,null,null,"Kamas Joueur 2"]
[]
[{"$f":"PickRD!$B$9","v":0}]

{"sheet":"Bonta 2","index":33,"n_rows":12,"n_cols":18,"rows_kept":12,"cut":false,"hidden":true,"merged":[[0,17,0,21],[1,17,3,21],[5,17,7,21],[9,17,9,21],[10,17,12,21]]}
[null,null,null,null,null,null,null,null,null,null,null,null,null,null,null,null,null,"Kamas Joueur 1"]
[{"$f":"PickRD!$B$2","v":0}]
[]
[{"$f":"PickRD!$B$4","v":0}]
[]
[{"$f":"PickRD!$B$5","v":0}]
[]
[{"$f":"PickRD!$B$7","v":0}]
[]
[{"$f":"PickRD!$B$8","v":0},null,null,null,null,null,null,null,null,null,null,null,null,null,null,null,null,"Kamas Joueur 2"]
[]
[{"$f":"PickRD!$B$9","v":0}]

{"sheet":"Bonta 2 inversée","index":34,"n_rows":12,"n_cols":18,"rows_kept":12,"cut":false,"hidden":true,"merged":[[0,17,0,21],[1,17,3,21],[5,17,7,21],[9,17,9,21],[10,17,12,21]]}
[null,null,null,null,null,null,null,null,null,null,null,null,null,null,null,null,null,"Kamas Joueur 1"]
[{"$f":"PickRD!$B$2","v":0}]
[]
[{"$f":"PickRD!$B$4","v":0}]
[]
[{"$f":"PickRD!$B$5","v":0}]
[]
[{"$f":"PickRD!$B$7","v":0}]
[]
[{"$f":"PickRD!$B$8","v":0},null,null,null,null,null,null,null,null,null,null,null,null,null,null,null,null,"Kamas Joueur 2"]
[]
[{"$f":"PickRD!$B$9","v":0}]

{"sheet":"Piwate 1","index":35,"n_rows":12,"n_cols":18,"rows_kept":12,"cut":false,"hidden":true,"merged":[[0,17,0,21],[1,17,3,21],[5,17,7,21],[9,17,9,21],[10,17,12,21]]}
[null,null,null,null,null,null,null,null,null,null,null,null,null,null,null,null,null,"Kamas Joueur 1"]
[{"$f":"PickRD!$B$2","v":0}]
[]
[{"$f":"PickRD!$B$4","v":0}]
[]
[{"$f":"PickRD!$B$5","v":0}]
[]
[{"$f":"PickRD!$B$7","v":0}]
[]
[{"$f":"PickRD!$B$8","v":0},null,null,null,null,null,null,null,null,null,null,null,null,null,null,null,null,"Kamas Joueur 2"]
[]
[{"$f":"PickRD!$B$9","v":0}]

{"sheet":"Piwate 1 inversée","index":36,"n_rows":12,"n_cols":18,"rows_kept":12,"cut":false,"hidden":true,"merged":[[0,17,0,21],[1,17,3,21],[5,17,7,21],[9,17,9,21],[10,17,12,21]]}
[null,null,null,null,null,null,null,null,null,null,null,null,null,null,null,null,null,"Kamas Joueur 1"]
[{"$f":"PickRD!$B$2","v":0}]
[]
[{"$f":"PickRD!$B$4","v":0}]
[]
[{"$f":"PickRD!$B$5","v":0}]
[]
[{"$f":"PickRD!$B$7","v":0}]
[]
[{"$f":"PickRD!$B$8","v":0},null,null,null,null,null,null,null,null,null,null,null,null,null,null,null,null,"Kamas Joueur 2"]
[]
[{"$f":"PickRD!$B$9","v":0}]

{"sheet":"Piwate 2","index":37,"n_rows":12,"n_cols":18,"rows_kept":12,"cut":false,"hidden":true,"merged":[[0,17,0,21],[1,17,3,21],[5,17,7,21],[9,17,9,21],[10,17,12,21]]}
[null,null,null,null,null,null,null,null,null,null,null,null,null,null,null,null,null,"Kamas Joueur 1"]
[{"$f":"PickRD!$B$2","v":0}]
[]
[{"$f":"PickRD!$B$4","v":0}]
[]
[{"$f":"PickRD!$B$5","v":0}]
[]
[{"$f":"PickRD!$B$7","v":0}]
[]
[{"$f":"PickRD!$B$8","v":0},null,null,null,null,null,null,null,null,null,null,null,null,null,null,null,null,"Kamas Joueur 2"]
[]
[{"$f":"PickRD!$B$9","v":0}]

{"sheet":"Piwate 2 inversée","index":38,"n_rows":12,"n_cols":18,"rows_kept":12,"cut":false,"hidden":true,"merged":[[0,17,0,21],[1,17,3,21],[5,17,7,21],[9,17,9,21],[10,17,12,21]]}
[null,null,null,null,null,null,null,null,null,null,null,null,null,null,null,null,null,"Kamas Joueur 1"]
[{"$f":"PickRD!$B$2","v":0}]
[]
[{"$f":"PickRD!$B$4","v":0}]
[]
[{"$f":"PickRD!$B$5","v":0}]
[]
[{"$f":"PickRD!$B$7","v":0}]
[]
[{"$f":"PickRD!$B$8","v":0},null,null,null,null,null,null,null,null,null,null,null,null,null,null,null,null,"Kamas Joueur 2"]
[]
[{"$f":"PickRD!$B$9","v":0}]